bitfinex-derivatives/quotes_ETHF0:USTF0_20251118
["timestamp","ask_amount","ask_price","bid_price","bid_amount"]
[1763473028524,3.4539,3033.3,3033.2,0.00494389]
[1763473030319,3.2078,3033.3,3033.2,0.38344389]
[1763473030918,3.4539,3033.3,3033.2,0.00494389]
[1763473031234,3.4539,3033.3,3032.5,3.2078]
[1763473031526,3.2078,3032.9,3032.5,3.2078]
[1763473032034,3.2078,3033.3,3033.2,0.3785]
[1763473032325,0.2461,3033.1,3032.9,0.00494389]
[1763473032526,3.2078,3033.3,3032.9,0.00494389]
[1763473032720,3.2078,3033.3,3033.0,0.2311]
[1763473032923,0.00354363,3033.7,3033.6,0.6096]
[1763473033323,0.00354363,3033.7,3033.5,3.2078]
[1763473033524,0.00354363,3033.7,3033.0,0.2311]
[1763473033525,0.00354363,3033.7,3033.6,0.2311]
[1763473033731,0.00354363,3033.7,3033.6,0.6096]
[1763473034134,0.24964363,3033.7,3033.1,3.2078]
[1763473034733,0.9462754,3033.6,3032.9,0.00494389]
[1763473034923,0.72564479,3033.5,3032.9,0.00494389]
[1763473035124,3.7804,3033.0,3032.4,0.00263715]
[1763473035333,3.7804,3033.0,3031.8,0.2302]
[1763473035334,0.3951,3032.5,3031.8,0.2302]
[1763473035629,3.2078,3032.2,3031.5,3.2078]
[1763473036224,3.21274389,3032.2,3031.5,3.2078]
[1763473036444,3.21274389,3032.2,3031.5,3.21039159]
[1763473036728,0.00494389,3032.2,3032.0,0.3785]
[1763473036930,0.00494389,3032.2,3032.1,0.3785]
[1763473037531,0.00494389,3032.2,3032.1,3.5863]
[1763473037830,0.00494389,3032.2,3032.1,3.58960754]
[1763473038744,3.2078,3032.6,3032.5,0.3785]
[1763473039128,3.2078,3032.6,3032.1,3.21110754]
[1763473039129,3.2078,3032.6,3032.1,0.00330754]
[1763473039834,3.2078,3032.6,3032.1,3.21110754]
[1763473040228,0.72691859,3032.5,3032.1,0.00330754]
[1763473041834,3.2078,3032.2,3031.3,3.2078]
[1763473042032,0.72719854,3032.1,3031.3,3.2078]
[1763473042234,3.2078,3031.8,3031.3,0.00414561]
[1763473042636,0.3787,3031.4,3031.3,0.00414561]
[1763473042833,3.58887301,3031.4,3031.3,0.00414561]
[1763473043033,3.21017301,3031.4,3031.3,0.00414561]
[1763473043434,3.58887301,3031.4,3031.3,0.00414561]
[1763473043635,3.58887301,3031.4,3031.3,0.37874561]
[1763473043636,3.21017301,3031.4,3031.3,0.37874561]
[1763473043841,3.2078,3031.8,3031.7,0.3746]
[1763473044138,3.2078,3031.8,3031.3,0.00414561]
[1763473044139,0.3787,3031.4,3031.3,0.00414561]
[1763473044343,3.2078,3031.8,3031.3,0.00414561]
[1763473044529,3.5865,3031.4,3031.3,0.00414561]
[1763473044841,3.5865,3031.4,3030.6,0.2311]
[1763473045535,3.2078,3031.0,3030.6,0.2311]
[1763473045836,0.53522,3030.1,3030.0,1.8557]
[1763473046041,0.53522,3030.1,3030.0,1.25]
[1763473046241,0.91392,3030.1,3030.0,1.25]
[1763473046439,0.3787,3030.0,3028.9,3.2078]
[1763473046639,0.3787,3030.0,3029.9,0.00413203]
[1763473046640,0.5941,3030.0,3029.9,0.00413203]
[1763473046837,0.3787,3030.0,3028.9,3.2078]
[1763473047137,3.2078,3030.2,3029.4,3.4282]
[1763473047329,3.21274389,3031.1,3030.5,0.3811]
[1763473047532,3.21274389,3031.1,3031.0,0.3811]
[1763473047732,3.57924389,3031.1,3031.0,0.00264381]
[1763473048037,3.57924389,3031.1,3030.0,0.2204]
[1763473048254,3.2078,3030.7,3030.0,0.2204]
[1763473049045,3.2078,3030.7,3030.0,0.22410808]
[1763473049445,0.00494389,3031.1,3030.0,0.00370808]
[1763473049446,0.3665,3030.1,3030.0,0.00370808]
[1763473049743,0.3665,3030.1,3029.4,0.2204]
[1763473049937,3.2078,3029.9,3029.4,0.2204]
[1763473050744,3.2078,3029.9,3029.8,0.3811]
[1763473051844,3.2078,3030.3,3030.2,0.3811]
[1763473052242,3.2078,3030.3,3029.6,3.2078]
[1763473052844,3.2078,3030.3,3030.2,0.3811]
[1763473053245,3.2078,3030.3,3029.6,3.2078]
[1763473053442,3.2078,3030.3,3029.4,0.22452967]
[1763473053947,0.53532,3029.5,3029.4,0.60562967]
[1763473054943,0.53532,3029.5,3029.4,0.00412967]
[1763473055344,3.2078,3029.5,3028.8,0.2195]
[1763473055549,3.21274389,3029.5,3028.8,0.2195]
[1763473055849,3.21274389,3029.5,3028.7,3.24081801]
[1763473056040,3.21274389,3029.5,3028.8,0.2204]
[1763473056241,0.00494389,3029.5,3029.4,0.6015]
[1763473056448,0.37144389,3029.5,3029.4,0.00409301]
[1763473056836,0.00494389,3029.5,3029.4,0.00409301]
[1763473057542,0.00494389,3029.5,3029.4,0.60559301]
[1763473057749,0.00494389,3029.5,3029.4,6.60559301]
[1763473058350,0.00494389,3029.5,3029.4,0.60559301]
[1763473058742,0.00494389,3029.5,3029.4,0.00409301]
[1763473058940,0.37144389,3029.5,3029.4,0.00409301]
[1763473059140,0.37144389,3029.5,3029.2,3.2078]
[1763473059141,0.00494389,3029.5,3029.2,3.2078]
[1763473059350,0.3665,3029.3,3028.7,0.03301801]
[1763473059644,3.2078,3028.8,3028.7,0.41411801]
[1763473059841,3.4322,3028.8,3027.9,3.2078]
[1763473060035,3.4322,3028.8,3027.0,0.2204]
[1763473060036,3.2078,3028.3,3027.4,3.2078]
[1763473060237,3.2078,3027.9,3027.4,3.2078]
[1763473060445,0.00495213,3028.0,3027.9,0.3811]
[1763473061353,0.00495213,3028.0,3027.9,6.3811]
[1763473061648,0.00495213,3028.0,3027.9,0.3811]
[1763473062045,3.21122651,3028.3,3028.2,0.6015]
[1763473062252,3.2078,3028.7,3028.2,0.6015]
[1763473062450,0.53554,3028.3,3028.2,0.6015]
[1763473063250,0.53970156,3028.3,3028.2,0.6015]
[1763473063849,0.00416156,3028.3,3028.2,0.6015]
[1763473064347,0.53970156,3028.3,3028.2,0.6015]
[1763473064742,0.00495213,3028.6,3028.5,0.3811]
[1763473064943,0.00495213,3028.6,3028.5,0.9166]
[1763473065144,3.7432,3029.1,3029.0,0.3811]
[1763473065351,0.53555,3028.3,3028.0,3.2078]
[1763473065649,3.74335,3028.2,3028.1,0.3811]
[1763473065848,0.53882876,3028.2,3028.1,0.3811]
[1763473066042,0.53557,3028.1,3028.0,3.2078]
[1763473066242,0.00327876,3028.2,3028.1,0.3811]
[1763473066449,0.53882876,3028.2,3028.1,0.3811]
[1763473066937,3.2078,3029.0,3028.3,0.3811]
[1763473067142,0.53545,3028.8,3028.7,0.3811]
[1763473067344,0.53554,3028.3,3028.2,0.6015]
[1763473067738,3.2078,3028.6,3028.2,0.6015]
[1763473067946,0.53554,3028.4,3028.2,0.6015]
[1763473068141,3.21102305,3028.6,3028.2,0.6015]
[1763473068342,0.53870305,3028.6,3028.5,0.3811]
[1763473069150,0.00322305,3028.6,3028.5,0.3811]
[1763473069452,0.53543,3028.9,3028.8,0.6015]
[1763473069639,3.4068,3029.4,3027.9,0.00495213]
[1763473069843,0.53559,3028.0,3027.9,3.59385213]
[1763473070043,3.2078,3028.9,3027.9,4.12946213]
[1763473070238,0.53557,3028.2,3028.1,0.3811]
[1763473072049,0.00495213,3028.5,3028.4,0.3811]
[1763473072360,0.54045213,3028.5,3028.4,0.3811]
[1763473072958,0.00495213,3028.5,3028.4,0.3811]
[1763473073155,0.00264394,3028.9,3028.8,0.6015]
[1763473073451,0.00264394,3028.9,3028.3,3.2078]
[1763473073748,3.2078,3028.8,3028.3,3.2078]
[1763473074150,0.00759607,3028.9,3028.7,0.3811]
[1763473074452,0.00759607,3028.9,3028.8,0.6015]
[1763473074659,3.2078,3029.2,3029.1,0.3811]
[1763473074856,3.2078,3029.6,3029.1,0.3811]
[1763473075050,3.2078,3029.6,3029.1,0.9165]
[1763473075449,3.2078,3029.6,3029.1,0.3811]
[1763473075652,3.21112315,3029.6,3029.1,0.3811]
[1763473079165,3.21112315,3029.6,3028.8,0.2204]
[1763473079363,3.21112315,3029.6,3028.7,3.2078]
[1763473079657,3.2078,3029.1,3028.7,3.2078]
[1763473079867,3.2078,3029.1,3028.8,0.2482]
[1763473080162,3.2078,3029.1,3028.7,3.2078]
[1763473080764,0.4179,3028.8,3028.2,0.2204]
[1763473080952,3.2078,3028.7,3028.1,3.2078]
[1763473081458,3.2078,3029.1,3028.2,0.78375]
[1763473081758,3.2078,3029.1,3028.5,0.5355]
[1763473081954,0.4179,3028.0,3027.9,0.00495213]
[1763473082161,0.2128,3027.0,3025.4,1.18315172]
[1763473082355,0.2128,3027.0,3025.1,3.2078]
[1763473082356,3.2078,3026.1,3025.1,3.2078]
[1763473082553,3.2078,3026.1,3025.8,0.2482]
[1763473082753,3.2078,3026.1,3024.6,3.456]
[1763473083055,3.2078,3025.6,3025.3,0.00495213]
[1763473084259,3.2078,3025.6,3025.2,0.00300466]
[1763473084761,3.2078,3025.6,3024.6,0.2482]
[1763473084961,3.2078,3025.1,3024.6,0.2482]
[1763473085555,3.2078,3025.1,3024.6,0.25101862]
[1763473085956,3.2078,3025.1,3024.6,0.00281862]
[1763473086154,3.2078,3024.7,3024.6,0.00281862]
[1763473086352,4.9924,3024.7,3023.4,3.2078]
[1763473086560,3.2078,3024.2,3022.6,0.2482]
[1763473086756,5.0902,3024.7,3022.6,0.2482]
[1763473086757,3.2078,3023.5,3022.6,0.2482]
[1763473086956,3.2078,3023.7,3022.6,0.2482]
[1763473087263,3.2078,3023.4,3023.3,0.2482]
[1763473087454,2.83162854,3023.4,3023.3,0.2482]
[1763473087660,3.2078,3024.7,3024.0,0.2482]
[1763473087860,3.2078,3024.7,3024.0,3.456]
[1763473088055,3.2078,3024.3,3024.0,0.2482]
[1763473088256,3.2078,3024.3,3023.3,0.2482]
[1763473088463,3.2078,3024.3,3023.4,3.2078]
[1763473088771,0.00496089,3024.2,3024.0,0.2482]
[1763473089866,0.00496089,3024.2,3024.0,0.78449]
[1763473090170,0.00496089,3024.2,3024.0,0.2482]
[1763473091569,3.2078,3025.1,3024.7,0.2482]
[1763473091867,3.2078,3026.0,3025.4,0.2482]
[1763473092163,3.2078,3026.8,3025.8,3.74377]
[1763473092364,3.21201722,3026.8,3026.1,0.2482]
[1763473092566,0.00496089,3026.6,3026.2,3.2078]
[1763473092866,0.00496089,3026.6,3026.2,3.7437]
[1763473093163,0.00496089,3026.6,3026.2,3.2078]
[1763473093373,0.00496089,3026.6,3026.2,3.7437]
[1763473093570,0.00496089,3026.6,3026.2,3.2078]
[1763473093762,3.2078,3027.3,3026.8,0.2482]
[1763473093962,3.2078,3027.7,3026.9,3.2078]
[1763473094261,3.2078,3028.1,3027.5,0.2482]
[1763473094466,3.2078,3028.5,3027.5,0.78387]
[1763473094665,3.2078,3028.5,3027.7,3.21275229]
[1763473094969,0.00322081,3028.3,3027.7,3.74838229]
[1763473095170,0.00322081,3028.3,3027.9,0.5356]
[1763473095364,0.00322081,3028.3,3028.2,0.2482]
[1763473095664,0.00322081,3028.3,3027.7,0.00495229]
[1763473095869,3.2078,3028.0,3026.8,0.2482]
[1763473096170,3.2078,3027.2,3026.8,0.2482]
[1763473096469,3.2078,3027.4,3026.8,0.2482]
[1763473096665,3.2078,3027.4,3026.8,0.25182336]
[1763473096967,3.2078,3027.4,3026.8,0.25677565]
[1763473097371,3.2078,3027.4,3026.8,0.00857565]
[1763473097757,3.2078,3027.4,3026.8,0.25677565]
[1763473097962,3.2078,3027.4,3026.8,0.00857565]
[1763473098164,3.2078,3027.0,3026.8,0.00857565]
[1763473098770,3.30320001,3026.9,3024.8,3.2078]
[1763473098969,3.2078,3025.2,3024.2,3.2078]
[1763473099372,3.2078,3025.2,3024.6,3.2078]
[1763473099567,0.00334534,3025.2,3024.7,0.25091086]
[1763473099769,0.00334534,3025.2,3024.7,0.78707086]
[1763473099973,0.00334534,3025.2,3024.7,0.25091086]
[1763473101772,3.2078,3025.0,3024.7,0.00271086]
[1763473101978,3.2078,3025.0,3024.6,0.00495229]
[1763473103075,3.2078,3025.0,3024.6,0.0081495]
[1763473104470,3.2078,3025.0,3024.8,0.53615]
[1763473104668,0.00334534,3025.2,3025.0,0.53612]
[1763473105076,3.2078,3025.9,3025.4,0.53605]
[1763473105276,3.2078,3026.8,3025.5,3.2078]
[1763473105478,3.2078,3026.8,3025.9,3.2078]
[1763473105868,0.53593,3026.1,3025.9,3.2078]
[1763473106172,0.53598,3025.9,3025.8,3.2078]
[1763473106770,0.53598,3025.9,3025.8,3.07657986]
[1763473106970,0.00249773,3026.1,3025.3,3.2078]
[1763473107375,0.53597,3025.9,3025.7,3.2078]
[1763473107576,0.536,3025.7,3025.6,0.2622]
[1763473107772,0.536,3025.7,3025.6,3.47]
[1763473107976,0.00495229,3026.3,3025.7,3.3048]
[1763473108174,0.53584,3026.6,3026.4,0.2622]
[1763473108371,0.53596,3025.9,3025.8,3.2078]
[1763473108567,0.53596,3026.0,3025.8,3.2078]
[1763473109073,0.00324942,3026.0,3025.6,0.00495229]
[1763473109481,0.00324942,3026.0,3025.6,0.26715229]
[1763473110970,0.00324942,3026.0,3025.8,3.2078]
[1763473112375,0.00324942,3026.0,3025.9,0.53596]
[1763473112582,0.00324942,3026.0,3025.8,3.74378]
[1763473112777,0.00324942,3026.0,3025.8,3.2078]
[1763473112978,0.00324942,3026.0,3025.6,0.00495229]
[1763473113181,0.00324942,3026.0,3025.7,3.2078]
[1763473113480,0.00324942,3026.0,3025.6,0.00495229]
[1763473113481,3.21104942,3026.0,3025.6,0.00495229]
[1763473113777,0.00324942,3026.0,3025.6,0.00495229]
[1763473115867,3.21104942,3026.0,3025.9,0.042]
[1763473117781,4.942e-05,3026.0,3025.9,0.57796]
[1763473117975,0.00322081,3026.2,3026.1,0.2622]
[1763473118170,3.2078,3026.8,3026.5,0.53585]
[1763473118381,3.2078,3026.8,3026.3,0.53588]
[1763473118574,3.2078,3026.8,3026.5,0.53586]
[1763473118775,1.15936307,3028.0,3026.5,3.2078]
[1763473118776,3.2078,3027.2,3026.5,3.2078]
[1763473118985,3.21090099,3027.2,3026.5,3.2078]
[1763473119173,0.00310099,3027.2,3026.5,3.74366]
[1763473119377,0.00310099,3027.2,3026.5,3.2078]
[1763473120283,3.21090099,3027.2,3026.8,0.2622]
[1763473120484,3.21090099,3027.2,3026.8,0.2660326]
[1763473121079,3.21090099,3027.2,3026.8,0.8018226]
[1763473121282,3.21090099,3027.2,3026.8,0.2660326]
[1763473121878,3.21090099,3027.2,3026.8,0.0038326]
[1763473122078,3.21090099,3027.2,3026.8,0.2660326]
[1763473122678,0.00310099,3027.2,3026.9,3.2078]
[1763473122982,0.00310099,3027.2,3027.1,0.53575]
[1763473123383,0.00310099,3027.2,3027.1,6.53575]
[1763473123583,0.00310099,3027.2,3026.9,3.2078]
[1763473123988,0.00310099,3027.2,3027.1,0.53575]
[1763473124186,0.00310099,3027.2,3026.9,3.2078]
[1763473124878,0.00310099,3027.2,3026.8,0.2660326]
[1763473125086,0.00310099,3027.2,3026.8,0.0038326]
[1763473125879,0.00310099,3027.2,3026.8,0.2660326]
[1763473126080,0.00310099,3027.2,3026.9,3.74358]
[1763473126287,0.00310099,3027.2,3026.9,3.2078]
[1763473127088,3.21090099,3027.2,3026.8,0.2660326]
[1763473127387,3.21090099,3027.2,3026.8,0.0038326]
[1763473129084,3.21090099,3027.2,3026.8,0.2660326]
[1763473129487,3.21090099,3027.2,3026.8,0.0038326]
[1763473129983,0.00310099,3027.2,3026.8,0.2660326]
[1763473132093,3.21090099,3027.2,3026.8,0.0038326]
[1763473132480,0.72410292,3027.1,3026.8,0.0038326]
[1763473133590,0.72410292,3027.1,3026.8,0.2660326]
[1763473137696,0.72410292,3027.1,3027.0,0.042]
[1763473138397,0.72410292,3027.1,3026.5,3.2078]
[1763473138990,3.2078,3026.8,3026.1,3.47]
[1763473139192,0.72444417,3026.7,3026.1,3.47]
[1763473139396,0.72444417,3026.7,3026.1,3.47280475]
[1763473139998,3.2078,3026.8,3026.1,4.00872475]
[1763473140293,3.2078,3026.8,3026.1,3.47280475]
[1763473140599,2.8107239,3026.8,3026.7,0.4157]
[1763473141290,0.00310099,3027.2,3027.0,0.2365]
[1763473141698,0.00310099,3027.2,3027.1,0.4157]
[1763473145805,0.00310099,3027.2,3026.6,3.2078]
[1763473145997,3.2078,3026.7,3026.1,4.00873475]
[1763473146191,3.2078,3027.1,3026.1,4.00873475]
[1763473146393,0.72535573,3027.0,3026.1,3.47280475]
[1763473147394,3.2078,3026.6,3026.5,0.4157]
[1763473147697,3.2078,3027.0,3026.5,0.4157]
[1763473148000,0.72583172,3026.9,3026.8,0.4157]
[1763473148506,0.72583172,3026.9,3026.2,0.53591]
[1763473148705,0.72583172,3026.9,3026.3,0.53589]
[1763473148908,0.72583172,3026.9,3026.1,5.24253002]
[1763473149106,0.72583172,3026.9,3026.1,5.77844002]
[1763473149806,0.72583172,3026.9,3026.1,5.24253002]
[1763473150501,0.72583172,3026.9,3026.1,3.47280475]
[1763473150705,3.2078,3026.5,3026.1,0.26500475]
[1763473150905,0.72583172,3026.4,3026.1,0.26500475]
[1763473151601,6.3044383,3027.1,3026.4,0.6522]
[1763473151602,3.2078,3027.0,3026.4,0.6522]
[1763473151801,3.2078,3027.0,3026.9,0.4157]
[1763473152901,3.2078,3027.0,3026.4,0.2365]
[1763473153209,3.2078,3027.0,3026.1,3.47280475]
[1763473153210,3.2078,3026.5,3026.1,0.26500475]
[1763473153709,0.72539376,3026.4,3026.1,0.26500475]
[1763473154408,3.2078,3026.9,3026.4,0.2365]
[1763473154999,3.2078,3026.5,3026.4,0.2365]
[1763473155207,3.2078,3026.5,3026.1,0.26500475]
[1763473155208,3.9333256,3026.5,3026.1,0.26500475]
[1763473155408,3.2078,3026.5,3026.1,0.26500475]
[1763473155607,0.72536046,3026.4,3026.1,0.26500475]
[1763473156310,0.72536046,3026.4,3026.1,0.00280475]
[1763473158209,1.15936307,3026.2,3025.6,0.00495229]
[1763473158407,4.36716307,3025.7,3024.8,3.2078]
[1763473158614,1.7454383,3025.8,3024.8,3.2078]
[1763473158615,3.2078,3025.2,3024.8,3.2078]
[1763473158910,0.72536046,3025.1,3024.8,3.2078]
[1763473159106,0.72536046,3025.1,3024.8,0.00254541]
[1763473159303,3.2078,3025.2,3024.8,0.00254541]
[1763473159504,0.72322429,3025.1,3024.8,0.00254541]
[1763473161011,0.00495229,3025.3,3024.8,0.00254541]
[1763473161012,0.00495229,3025.3,3025.2,0.6151]
[1763473161809,0.00495229,3025.3,3025.2,0.2318]
[1763473162009,0.00495229,3025.3,3025.2,0.6151]
[1763473162311,3.16039002,3025.6,3025.5,0.3833]
[1763473162506,3.16039002,3025.6,3025.2,0.2318]
[1763473163609,3.16039002,3025.6,3025.1,3.2078]
[1763473163811,3.16039002,3025.6,3024.8,0.00254541]
[1763473165017,3.2078,3025.2,3024.8,0.00254541]
[1763473165714,0.53614,3024.9,3024.8,0.00254541]
[1763473165907,0.54005706,3024.9,3024.8,0.00254541]
[1763473166820,0.00391706,3024.9,3024.6,0.00495229]
[1763473167021,3.2078,3024.7,3024.6,0.00495229]
[1763473167818,9.92515528,3024.7,3024.6,4.43e-06]
[1763473168117,9.92515528,3024.7,3023.6,3.2078]
[1763473168118,3.92515528,3024.7,3023.6,3.2078]
[1763473168321,3.2078,3024.7,3023.7,0.53635]
[1763473168513,3.2078,3024.7,3024.0,3.2078]
[1763473168719,3.2078,3024.7,3024.0,3.4379]
[1763473168919,3.21275229,3024.7,3024.0,3.44624508]
[1763473169525,3.21275229,3024.7,3024.6,0.6104]
[1763473169929,0.00495229,3024.7,3024.6,0.6104]
[1763473170421,0.00495229,3024.7,3024.6,0.2301]
[1763473170818,0.00495229,3024.7,3024.6,0.6104]
[1763473171017,0.00495229,3024.7,3024.6,0.2301]
[1763473171221,0.00495229,3024.7,3024.6,0.6104]
[1763473171414,0.00495229,3024.7,3024.6,1.14659]
[1763473171825,0.00495229,3024.7,3024.6,7.14659]
[1763473172020,3.2078,3025.5,3025.4,0.3803]
[1763473172326,3.2078,3025.9,3025.2,3.4379]
[1763473172929,3.21076145,3025.9,3025.2,3.4379]
[1763473173228,3.21076145,3025.9,3025.8,0.6104]
[1763473174222,3.21076145,3025.9,3025.8,0.2301]
[1763473174424,3.21076145,3025.9,3025.8,0.6104]
[1763473177142,3.21076145,3025.9,3025.8,1.14638]
[1763473177445,3.2078,3026.4,3026.3,0.3803]
[1763473178340,3.21095433,3026.4,3026.3,0.38442411]
[1763473178942,0.00315433,3026.4,3026.3,0.38442411]
[1763473179140,0.00315433,3026.4,3026.3,0.00412411]
[1763473179341,3.21095433,3026.4,3026.3,0.00412411]
[1763473179534,3.21095433,3026.4,3025.1,1.76972527]
[1763473179535,3.21095433,3026.4,3025.2,3.97399]
[1763473179844,3.21095433,3026.4,3025.3,0.53607]
[1763473180143,3.21095433,3026.4,3025.8,0.2301]
[1763473180644,3.2078,3026.8,3026.7,0.3803]
[1763473181646,3.21179415,3026.8,3026.7,0.3803]
[1763473182237,0.00399415,3026.8,3026.7,0.3803]
[1763473182547,1.25062043,3028.2,3026.7,0.3803]
[1763473182548,3.2078,3027.7,3027.6,0.2301]
[1763473182939,3.2078,3027.7,3027.6,0.6104]
[1763473183141,3.2078,3028.2,3027.6,0.6104]
[1763473183748,3.21158889,3028.2,3027.6,0.6104]
[1763473183949,3.21158889,3028.2,3027.6,0.2301]
[1763473184948,3.21158889,3028.2,3027.3,0.00495229]
[1763473185153,0.0346,3028.7,3028.5,0.3803]
[1763473185358,0.0346,3028.7,3028.6,3.5881]
[1763473185556,3.2078,3029.6,3028.8,0.2301]
[1763473185849,3.2078,3029.6,3028.9,0.00495229]
[1763473186043,3.4322,3030.0,3029.0,3.2078]
[1763473186248,3.43453166,3030.0,3029.0,3.21049606]
[1763473186949,3.43453166,3030.0,3029.1,0.53538]
[1763473187148,3.43453166,3030.0,3029.4,3.2078]
[1763473188154,0.00233166,3030.0,3029.9,0.3803]
[1763473188746,0.2244,3031.2,3029.9,0.3803]
[1763473188747,3.2078,3031.2,3030.0,0.2301]
[1763473189049,3.2078,3031.6,3030.7,3.2078]
[1763473189250,3.2078,3031.6,3030.8,0.00495229]
[1763473189847,0.00249664,3031.6,3031.2,3.2078]
[1763473190046,0.00249664,3031.6,3031.2,3.21098757]
[1763473190851,3.2078,3031.5,3031.2,0.00318757]
[1763473194942,3.2078,3031.5,3031.4,0.3803]
[1763473195445,0.00249664,3031.6,3031.5,0.3803]
[1763473197342,0.00249664,3031.6,3031.2,3.44108757]
[1763473197547,0.00249664,3031.6,3031.2,0.00318757]
[1763473197957,0.00249664,3031.6,3031.5,0.3754]
[1763473199561,3.2078,3032.6,3031.8,0.2076]
[1763473199752,3.2078,3033.0,3032.5,0.3754]
[1763473200154,3.2078,3033.0,3032.5,0.91019]
[1763473200451,3.2078,3033.4,3032.5,0.53479]
[1763473200652,3.21146856,3033.4,3032.4,3.42035229]
[1763473200851,3.5607,3032.5,3032.4,0.00495229]
[1763473201053,3.2078,3032.5,3032.4,0.00495229]
[1763473201257,3.5607,3032.5,3032.4,0.00495229]
[1763473201458,3.2078,3032.5,3032.4,0.38035229]
[1763473201652,3.2078,3033.1,3033.0,0.3754]
[1763473201857,0.00366856,3033.4,3033.0,3.5832]
[1763473202066,3.2078,3033.9,3033.6,0.7422]
[1763473202267,3.4222,3034.8,3033.6,0.2076]
[1763473202557,3.2078,3034.8,3034.4,3.2078]
[1763473202861,3.4222,3035.4,3034.4,3.2078]
[1763473203056,3.42465628,3035.4,3034.5,0.74203]
[1763473203252,3.42465628,3035.4,3034.5,0.2076]
[1763473203452,3.2078,3035.9,3035.2,3.2078]
[1763473203657,3.2078,3037.3,3035.9,0.53419]
[1763473203858,3.2078,3037.4,3036.4,3.2078]
[1763473204053,3.2078,3037.4,3036.6,3.2078]
[1763473204652,0.21615261,3037.2,3036.6,3.21120931]
[1763473204954,3.2078,3037.0,3036.6,0.00340931]
[1763473205150,3.2078,3037.0,3036.1,3.2078]
[1763473205355,0.21615261,3037.2,3036.8,3.2078]
[1763473205561,0.21615261,3037.2,3036.9,0.53401]
[1763473205765,0.00325261,3037.2,3036.8,3.2078]
[1763473206066,0.2144,3036.0,3035.9,3.2078]
[1763473206358,0.2144,3036.8,3035.9,3.74584238]
[1763473206556,0.2144,3036.8,3036.7,3.2078]
[1763473206865,0.00325261,3037.2,3036.7,3.2078]
[1763473207171,0.2144,3038.4,3037.1,3.2078]
[1763473207356,0.2144,3038.4,3037.9,3.2078]
[1763473208265,0.21813993,3038.4,3038.3,3.2078]
[1763473208565,0.21813993,3038.4,3037.2,3.2078]
[1763473208566,3.42593993,3038.4,3037.2,3.2078]
[1763473208766,0.00373993,3038.4,3038.0,3.2078]
[1763473209065,0.21813993,3038.4,3038.0,3.2078]
[1763473209252,0.00373993,3038.4,3038.0,3.2078]
[1763473209459,0.00373993,3038.4,3038.0,3.21150533]
[1763473209655,0.00373993,3038.4,3038.1,0.5338]
[1763473209862,0.00373993,3038.4,3038.0,3.21150533]
[1763473210362,0.00373993,3038.4,3038.1,3.2912]
[1763473210565,0.00373993,3038.4,3038.0,3.21150533]
[1763473210759,0.00373993,3038.4,3038.2,0.53378]
[1763473210955,3.2078,3039.8,3039.0,0.53364]
[1763473211162,3.2078,3040.2,3039.4,3.74137]
[1763473211466,3.2078,3040.2,3039.1,0.00493518]
[1763473211467,3.2078,3040.6,3039.8,3.2078]
[1763473211665,3.2078,3041.2,3040.2,3.2078]
[1763473211863,0.2144,3040.2,3039.8,3.2078]
[1763473212166,0.2144,3039.3,3039.1,0.00493518]
[1763473212360,0.2144,3039.3,3039.1,0.00876184]
[1763473212757,0.2144,3040.2,3039.1,0.00876184]
[1763473212960,3.2078,3040.4,3039.6,3.2078]
[1763473213174,0.2144,3040.8,3040.0,3.2078]
[1763473213469,3.2078,3040.4,3039.2,3.2078]
[1763473213662,3.2078,3039.4,3039.1,0.00876184]
[1763473214062,0.2144,3040.8,3039.1,0.00876184]
[1763473214063,3.2078,3039.6,3039.1,0.00876184]
[1763473214264,3.2078,3039.6,3039.2,0.2076]
[1763473214868,3.2078,3039.6,3039.2,0.74121]
[1763473215171,3.2078,3040.0,3039.2,3.4972]
[1763473215466,3.2078,3040.8,3040.0,0.1072]
[1763473215770,3.2078,3040.8,3039.2,3.4972]
[1763473215771,3.2078,3040.4,3039.7,3.2078]
[1763473216568,3.2078,3040.4,3039.2,3.2078]
[1763473216766,3.2078,3040.4,3039.6,3.2078]
[1763473217366,3.2078,3040.4,3039.4,3.2078]
[1763473217567,3.2078,3040.0,3039.1,0.00876184]
[1763473217772,3.2078,3040.0,3039.4,3.2078]
[1763473218067,0.00369294,3041.2,3040.2,0.53344]
[1763473218274,0.00369294,3041.2,3040.6,3.2078]
[1763473218767,3.2078,3040.9,3039.8,3.2078]
[1763473218961,3.2078,3040.5,3039.3,0.2076]
[1763473219166,3.2078,3040.5,3039.6,3.2078]
[1763473219966,3.21149294,3041.2,3040.1,3.2078]
[1763473220161,3.2078,3041.1,3040.2,0.53344]
[1763473220363,3.2078,3041.1,3040.5,3.2078]
[1763473220575,3.2078,3041.1,3039.3,0.2076]
[1763473220576,3.2078,3040.6,3040.1,3.2078]
[1763473221069,0.00369294,3041.2,3040.5,3.2078]
[1763473221070,3.2078,3041.1,3040.5,3.2078]
[1763473222063,3.2078,3041.1,3040.9,0.53332]
[1763473222260,0.00369294,3041.2,3041.0,3.2078]
[1763473222467,0.00369294,3041.2,3041.0,3.7411]
[1763473222669,3.2078,3042.5,3041.7,0.53316]
[1763473222967,3.2078,3042.5,3041.9,3.2078]
[1763473223167,3.2078,3042.0,3041.1,3.2078]
[1763473223670,3.21095342,3042.0,3041.1,3.21124328]
[1763473223873,3.21095342,3042.0,3041.2,0.53327]
[1763473224174,3.21095342,3042.0,3041.6,3.2078]
[1763473224175,0.00315342,3042.0,3041.6,3.2078]
[1763473224472,0.00315342,3042.0,3041.8,0.53316]
[1763473224870,3.2078,3042.8,3041.9,0.53314]
[1763473225072,3.2078,3042.8,3042.2,3.2078]
[1763473225674,3.2078,3042.3,3041.8,3.2078]
[1763473225870,3.2120041,3042.3,3041.8,3.2078]
[1763473226073,0.0346,3043.7,3042.2,3.2078]
[1763473226268,3.2078,3045.4,3043.5,3.2078]
[1763473226469,3.2078,3045.4,3043.7,3.2078]
[1763473226780,3.2078,3044.7,3044.1,0.00492684]
[1763473226987,3.2078,3045.3,3044.1,3.21272684]
[1763473227174,0.00330381,3044.7,3044.5,3.2078]